[Event "Titled Tuesday Blitz August 1 Early 2023"]
[White "Erzhanov, Arman"]
[Black "Skiadopoulos, Nikolaos"]
[WhiteFideId "4138821"]
[BlackFideId "4200772"]
[WhiteElo "2515"]
[BlackElo "1825"]
[Result "0-1"]
[Round "1"]
[TimeControl "180+1"]
[Date "2023.08.01"]
[WhiteClock "0:00:00"]
[BlackClock "0:00:03"]
[Board "256"]

1. e4 {[%clk 0:03:00]}  c5 {[%clk 0:02:58]} 2. Nf3 {[%clk 0:02:52]}  Nc6 {[%clk 0:02:58]} 3. Bb5 {[%clk 0:02:51]}  Na5 {[%clk 0:02:57]} 4. c3 {[%clk 0:02:49]}  a6 {[%clk 0:02:57]} 5. Ba4 {[%clk 0:02:50]}  b5 {[%clk 0:02:57]} 6. Bc2 {[%clk 0:02:50]}  Bb7 {[%clk 0:02:56]} 7. O-O {[%clk 0:02:51]}  g6 {[%clk 0:02:55]} 8. d4 {[%clk 0:02:51]}  cxd4 {[%clk 0:02:54]} 9. cxd4 {[%clk 0:02:52]}  Bg7 {[%clk 0:02:53]} 10. Nc3 {[%clk 0:02:51]}  Nf6 {[%clk 0:02:48]} 11. e5 {[%clk 0:02:47]}  Nd5 {[%clk 0:02:47]} 12. Ne4 {[%clk 0:02:46]}  O-O {[%clk 0:02:36]} 13. Re1 {[%clk 0:02:45]}  Nb4 {[%clk 0:02:32]} 14. Bb1 {[%clk 0:02:44]}  Bxe4 {[%clk 0:02:23]} 15. Bxe4 {[%clk 0:02:43]}  Rc8 {[%clk 0:02:20]} 16. a3 {[%clk 0:02:41]}  Nbc6 {[%clk 0:02:16]} 17. Bf4 {[%clk 0:02:26]}  d6 {[%clk 0:02:15]} 18. exd6 {[%clk 0:02:20]}  exd6 {[%clk 0:02:15]} 19. Bg5 {[%clk 0:01:42]}  Qb6 {[%clk 0:02:00]} 20. Bxc6 {[%clk 0:01:30]}  Nxc6 {[%clk 0:01:57]} 21. Be3 {[%clk 0:01:18]}  d5 {[%clk 0:01:52]} 22. b4 {[%clk 0:01:16]}  a5 {[%clk 0:01:48]} 23. Rb1 {[%clk 0:01:12]}  axb4 {[%clk 0:01:46]} 24. axb4 {[%clk 0:01:13]}  Ra8 {[%clk 0:01:44]} 25. Qd2 {[%clk 0:01:13]}  Rfe8 {[%clk 0:01:35]} 26. h4 {[%clk 0:01:13]}  h5 {[%clk 0:01:33]} 27. Rec1 {[%clk 0:01:05]}  Ne7 {[%clk 0:01:25]} 28. Rc5 {[%clk 0:01:05]}  Nf5 {[%clk 0:01:24]} 29. Qd3 {[%clk 0:00:59]}  Nxe3 {[%clk 0:01:08]} 30. fxe3 {[%clk 0:00:59]}  Qe6 {[%clk 0:01:08]} 31. Re1 {[%clk 0:00:56]}  Ra2 {[%clk 0:01:05]} 32. Qxb5 {[%clk 0:00:51]}  Rea8 {[%clk 0:00:49]} 33. Qd3 {[%clk 0:00:47]}  R8a3 {[%clk 0:00:46]} 34. Rc3 {[%clk 0:00:41]}  Rxc3 {[%clk 0:00:35]} 35. Qxc3 {[%clk 0:00:42]}  Bh6 {[%clk 0:00:33]} 36. Ne5 {[%clk 0:00:37]}  Qf5 {[%clk 0:00:29]} 37. Rf1 {[%clk 0:00:26]}  Qe4 {[%clk 0:00:23]} 38. Qc8+ {[%clk 0:00:25]}  Bf8 {[%clk 0:00:22]} 39. Rf3 {[%clk 0:00:20]}  Qb1+ {[%clk 0:00:19]} 40. Kh2 {[%clk 0:00:20]}  Ra1 {[%clk 0:00:19]} 41. Qe8 {[%clk 0:00:10]}  Qh1+ {[%clk 0:00:18]} 42. Kg3 {[%clk 0:00:10]}  Qe1+ {[%clk 0:00:17]} 43. Kf4 {[%clk 0:00:05]}  Qxh4+ {[%clk 0:00:17]} 44. g4 {[%clk 0:00:06]}  Qf6+ {[%clk 0:00:10]} 45. Kg3 {[%clk 0:00:05]}  h4+ {[%clk 0:00:09]} 46. Kg2 {[%clk 0:00:02]}  Ra2+ {[%clk 0:00:08]} 47. Kg1 {[%clk 0:00:00]}  Qe6 {[%clk 0:00:03]} 0-1


[Site "https://www.chess.com"]

[Event "Titled Tuesday Blitz August 1 Early 2023"]
[White "Carlsen, Magnus"]
[Black "Iskusnyh, Sergei"]
[WhiteFideId "1503014"]
[BlackFideId "4120027"]
[WhiteElo "3245"]
[BlackElo "2632"]
[Result "1-0"]
[Round "2"]
[TimeControl "180+1"]
[Date "2023.08.01"]
[WhiteClock "0:01:38"]
[BlackClock "0:00:00"]
[Board "1"]

1. f4 {[%clk 0:02:59]}  d5 {[%clk 0:02:51]} 2. Nf3 {[%clk 0:02:39]}  Nf6 {[%clk 0:02:49]} 3. g3 {[%clk 0:02:33]}  e6 {[%clk 0:02:48]} 4. Bg2 {[%clk 0:02:34]}  Be7 {[%clk 0:02:48]} 5. O-O {[%clk 0:02:33]}  b5 {[%clk 0:02:48]} 6. d3 {[%clk 0:02:33]}  Bb7 {[%clk 0:02:47]} 7. c3 {[%clk 0:02:32]}  c5 {[%clk 0:02:45]} 8. a4 {[%clk 0:02:33]}  b4 {[%clk 0:02:43]} 9. a5 {[%clk 0:02:33]}  O-O {[%clk 0:02:25]} 10. Kh1 {[%clk 0:02:33]}  Na6 {[%clk 0:02:06]} 11. Be3 {[%clk 0:02:32]}  Qc7 {[%clk 0:01:49]} 12. Nbd2 {[%clk 0:02:27]}  c4 {[%clk 0:01:45]} 13. dxc4 {[%clk 0:02:14]}  dxc4 {[%clk 0:01:45]} 14. Bd4 {[%clk 0:02:15]}  Rfd8 {[%clk 0:01:31]} 15. e3 {[%clk 0:02:12]}  bxc3 {[%clk 0:01:24]} 16. bxc3 {[%clk 0:02:10]}  Nc5 {[%clk 0:01:21]} 17. Qe2 {[%clk 0:02:10]}  Nd3 {[%clk 0:01:15]} 18. a6 {[%clk 0:02:05]}  Bc6 {[%clk 0:00:37]} 19. Nxc4 {[%clk 0:01:56]}  Bb5 {[%clk 0:00:26]} 20. Nb2 {[%clk 0:01:46]}  Nxf4 {[%clk 0:00:15]} 21. Qxb5 {[%clk 0:01:47]}  Rab8 {[%clk 0:00:00]} 22. Qc4 {[%clk 0:01:38]} 1-0


[Site "https://www.chess.com"]

[Event "Titled Tuesday Blitz August 1 Early 2023"]
[White "Bortnyk, Olexandr"]
[Black "Radzhabov, Rodion"]
[WhiteFideId "14120828"]
[BlackFideId "884715"]
[WhiteElo "3076"]
[BlackElo "2622"]
[Result "1-0"]
[Round "2"]
[TimeControl "180+1"]
[Date "2023.08.01"]
[WhiteClock "0:01:40"]
[BlackClock "0:00:01"]
[Board "5"]

1. e4 {[%clk 0:03:00]}  c5 {[%clk 0:02:59]} 2. c3 {[%clk 0:03:00]}  Nf6 {[%clk 0:02:57]} 3. e5 {[%clk 0:03:01]}  Nd5 {[%clk 0:02:56]} 4. d4 {[%clk 0:03:02]}  cxd4 {[%clk 0:02:55]} 5. Nf3 {[%clk 0:03:03]}  Nc6 {[%clk 0:02:55]} 6. cxd4 {[%clk 0:03:03]}  d6 {[%clk 0:02:51]} 7. Bc4 {[%clk 0:03:03]}  Nb6 {[%clk 0:02:51]} 8. Bb5 {[%clk 0:03:03]}  dxe5 {[%clk 0:02:49]} 9. Nxe5 {[%clk 0:03:04]}  Bd7 {[%clk 0:02:49]} 10. Nxd7 {[%clk 0:03:04]}  Qxd7 {[%clk 0:02:49]} 11. Nc3 {[%clk 0:03:05]}  e6 {[%clk 0:02:48]} 12. O-O {[%clk 0:03:05]}  a6 {[%clk 0:02:44]} 13. Bxc6 {[%clk 0:03:05]}  bxc6 {[%clk 0:02:45]} 14. Qg4 {[%clk 0:03:05]}  h5 {[%clk 0:02:19]} 15. Qh3 {[%clk 0:03:04]}  Nd5 {[%clk 0:01:54]} 16. Re1 {[%clk 0:03:01]}  Be7 {[%clk 0:01:50]} 17. Ne4 {[%clk 0:02:59]}  Nf6 {[%clk 0:01:47]} 18. Ng5 {[%clk 0:02:52]}  Qxd4 {[%clk 0:01:36]} 19. Nxf7 {[%clk 0:02:49]}  O-O {[%clk 0:01:24]} 20. Ng5 {[%clk 0:02:06]}  Qxf2+ {[%clk 0:00:09]} 21. Kxf2 {[%clk 0:02:07]}  Ng4+ {[%clk 0:00:09]} 22. Kg1 {[%clk 0:01:42]}  Bc5+ {[%clk 0:00:04]} 23. Be3 {[%clk 0:01:42]}  Nxe3 {[%clk 0:00:01]} 24. Rxe3 {[%clk 0:01:40]} 1-0


[Site "https://www.chess.com"]

[Event "Titled Tuesday Blitz August 1 Early 2023"]
[White "Xu, Xiangyu"]
[Black "Ozates, Tuna"]
[WhiteFideId "8608288"]
[BlackFideId "6354521"]
[WhiteElo "3005"]
[BlackElo "2613"]
[Result "1-0"]
[Round "2"]
[TimeControl "180+1"]
[Date "2023.08.01"]
[WhiteClock "0:00:42"]
[BlackClock "0:00:00"]
[Board "12"]

1. d4 {[%clk 0:03:00]}  Nf6 {[%clk 0:02:56]} 2. c4 {[%clk 0:03:00]}  e6 {[%clk 0:02:56]} 3. Nf3 {[%clk 0:03:00]}  d5 {[%clk 0:02:56]} 4. Nc3 {[%clk 0:03:01]}  c5 {[%clk 0:02:54]} 5. cxd5 {[%clk 0:03:01]}  Nxd5 {[%clk 0:02:54]} 6. e3 {[%clk 0:03:00]}  Nc6 {[%clk 0:02:53]} 7. Bd3 {[%clk 0:02:57]}  Be7 {[%clk 0:02:54]} 8. O-O {[%clk 0:02:57]}  O-O {[%clk 0:02:54]} 9. a3 {[%clk 0:02:49]}  cxd4 {[%clk 0:02:46]} 10. exd4 {[%clk 0:02:48]}  h6 {[%clk 0:02:20]} 11. Bc2 {[%clk 0:02:46]}  Nf6 {[%clk 0:02:15]} 12. Re1 {[%clk 0:02:39]}  b6 {[%clk 0:02:14]} 13. Qd3 {[%clk 0:02:39]}  Bb7 {[%clk 0:02:11]} 14. Bf4 {[%clk 0:02:40]}  Bd6 {[%clk 0:01:56]} 15. Bd2 {[%clk 0:02:36]}  Ne7 {[%clk 0:01:51]} 16. Ne5 {[%clk 0:02:25]}  Rc8 {[%clk 0:01:32]} 17. Qg3 {[%clk 0:01:50]}  Kh8 {[%clk 0:01:15]} 18. Rad1 {[%clk 0:01:40]}  Nf5 {[%clk 0:01:03]} 19. Qh3 {[%clk 0:01:37]}  Ng8 {[%clk 0:00:30]} 20. Bxf5 {[%clk 0:01:24]}  exf5 {[%clk 0:00:30]} 21. Qxf5 {[%clk 0:01:25]}  Bc7 {[%clk 0:00:22]} 22. Nxf7+ {[%clk 0:01:22]}  Rxf7 {[%clk 0:00:22]} 23. Qxf7 {[%clk 0:01:23]}  Qh4 {[%clk 0:00:21]} 24. g3 {[%clk 0:01:19]}  Qh3 {[%clk 0:00:20]} 25. d5 {[%clk 0:01:19]}  Nf6 {[%clk 0:00:16]} 26. Re7 {[%clk 0:01:18]}  Rg8 {[%clk 0:00:14]} 27. Rxc7 {[%clk 0:01:06]}  Ba6 {[%clk 0:00:14]} 28. f3 {[%clk 0:01:01]}  Nh5 {[%clk 0:00:04]} 29. Bxh6 {[%clk 0:00:53]}  Nxg3 {[%clk 0:00:01]} 30. Bxg7+ {[%clk 0:00:53]}  Kh7 {[%clk 0:00:01]} 31. Be5+ {[%clk 0:00:42]}  Kh6 {[%clk 0:00:00]} 32. Bf4+ {[%clk 0:00:42]} 1-0


[Site "https://www.chess.com"]

[Event "Titled Tuesday Blitz August 1 Early 2023"]
[White "Hovhannisyan, Robert"]
[Black "musclemonster12"]
[WhiteFideId "13302507"]
[WhiteElo "2969"]
[BlackElo "2607"]
[Result "1-0"]
[Round "2"]
[TimeControl "180+1"]
[Date "2023.08.01"]
[WhiteClock "0:00:49"]
[BlackClock "0:00:07"]
[Board "15"]

1. e4 {[%clk 0:03:00]}  c5 {[%clk 0:02:51]} 2. Nf3 {[%clk 0:02:58]}  d6 {[%clk 0:02:49]} 3. d4 {[%clk 0:02:58]}  cxd4 {[%clk 0:02:48]} 4. Nxd4 {[%clk 0:02:58]}  Nf6 {[%clk 0:02:49]} 5. Nc3 {[%clk 0:02:59]}  Nc6 {[%clk 0:02:50]} 6. Bg5 {[%clk 0:02:58]}  e6 {[%clk 0:02:49]} 7. Qd2 {[%clk 0:02:57]}  a6 {[%clk 0:02:50]} 8. O-O-O {[%clk 0:02:53]}  Bd7 {[%clk 0:02:49]} 9. Nxc6 {[%clk 0:02:51]}  Bxc6 {[%clk 0:02:47]} 10. Qe1 {[%clk 0:02:49]}  Be7 {[%clk 0:02:00]} 11. e5 {[%clk 0:02:42]}  Nd5 {[%clk 0:01:59]} 12. Bxe7 {[%clk 0:02:38]}  Qxe7 {[%clk 0:01:59]} 13. Nxd5 {[%clk 0:02:27]}  Bxd5 {[%clk 0:01:52]} 14. c4 {[%clk 0:02:23]}  Rc8 {[%clk 0:01:09]} 15. Kb1 {[%clk 0:02:10]}  Bxc4 {[%clk 0:01:08]} 16. Bxc4 {[%clk 0:02:09]}  Rxc4 {[%clk 0:01:09]} 17. exd6 {[%clk 0:02:10]}  Qd7 {[%clk 0:01:09]} 18. Rc1 {[%clk 0:01:52]}  Rxc1+ {[%clk 0:00:53]} 19. Qxc1 {[%clk 0:01:53]}  O-O {[%clk 0:00:53]} 20. Qc7 {[%clk 0:01:28]}  Rd8 {[%clk 0:00:49]} 21. Rd1 {[%clk 0:01:25]}  Kf8 {[%clk 0:00:40]} 22. h4 {[%clk 0:01:13]}  Ke8 {[%clk 0:00:28]} 23. Qc2 {[%clk 0:01:11]}  g6 {[%clk 0:00:23]} 24. Qc3 {[%clk 0:01:11]}  Qc6 {[%clk 0:00:19]} 25. Qh8+ {[%clk 0:00:58]}  Kd7 {[%clk 0:00:18]} 26. Qf6 {[%clk 0:00:57]}  Qe4+ {[%clk 0:00:09]} 27. Ka1 {[%clk 0:00:57]}  Qc2 {[%clk 0:00:09]} 28. Qxf7+ {[%clk 0:00:49]}  Kc6 {[%clk 0:00:07]} 29. Qc7+ {[%clk 0:00:49]} 1-0


[Site "https://www.chess.com"]

[Event "Titled Tuesday Blitz August 1 Early 2023"]
[White "Principe, Gerson"]
[Black "Bok, Benjamin"]
[WhiteFideId "3804550"]
[BlackFideId "1017063"]
[WhiteElo "2605"]
[BlackElo "2954"]
[Result "0-1"]
[Round "2"]
[TimeControl "180+1"]
[Date "2023.08.01"]
[WhiteClock "0:00:00"]
[BlackClock "0:00:05"]
[Board "17"]

1. d4 {[%clk 0:02:59]}  Nf6 {[%clk 0:03:00]} 2. Nf3 {[%clk 0:02:59]}  e6 {[%clk 0:02:59]} 3. e3 {[%clk 0:03:00]}  b6 {[%clk 0:02:59]} 4. Be2 {[%clk 0:03:01]}  Bb7 {[%clk 0:02:59]} 5. O-O {[%clk 0:03:01]}  c5 {[%clk 0:02:59]} 6. b3 {[%clk 0:03:02]}  d5 {[%clk 0:02:59]} 7. Bb2 {[%clk 0:03:02]}  Nc6 {[%clk 0:02:59]} 8. c4 {[%clk 0:03:00]}  cxd4 {[%clk 0:02:59]} 9. Nxd4 {[%clk 0:02:53]}  Be7 {[%clk 0:02:46]} 10. cxd5 {[%clk 0:02:39]}  Nxd4 {[%clk 0:02:45]} 11. Qxd4 {[%clk 0:02:38]}  Qxd5 {[%clk 0:02:29]} 12. Qxd5 {[%clk 0:02:34]}  Nxd5 {[%clk 0:02:24]} 13. Bb5+ {[%clk 0:02:29]}  Kf8 {[%clk 0:02:23]} 14. Nd2 {[%clk 0:01:59]}  f6 {[%clk 0:02:05]} 15. Rac1 {[%clk 0:01:57]}  a6 {[%clk 0:01:30]} 16. Bc6 {[%clk 0:01:52]}  Bxc6 {[%clk 0:01:23]} 17. Rxc6 {[%clk 0:01:53]}  Kf7 {[%clk 0:01:23]} 18. Nf3 {[%clk 0:01:31]}  Rhc8 {[%clk 0:01:12]} 19. Rfc1 {[%clk 0:01:29]}  Rxc6 {[%clk 0:01:11]} 20. Rxc6 {[%clk 0:01:28]}  e5 {[%clk 0:01:01]} 21. a3 {[%clk 0:01:25]}  b5 {[%clk 0:00:59]} 22. Kf1 {[%clk 0:01:19]}  Ke8 {[%clk 0:00:51]} 23. e4 {[%clk 0:01:10]}  Nf4 {[%clk 0:00:47]} 24. Ne1 {[%clk 0:00:48]}  Kd7 {[%clk 0:00:44]} 25. Rc2 {[%clk 0:00:46]}  a5 {[%clk 0:00:38]} 26. g3 {[%clk 0:00:46]}  Ne6 {[%clk 0:00:39]} 27. Nd3 {[%clk 0:00:41]}  Ng5 {[%clk 0:00:35]} 28. Re2 {[%clk 0:00:31]}  Rc8 {[%clk 0:00:33]} 29. f4 {[%clk 0:00:28]}  exf4 {[%clk 0:00:30]} 30. gxf4 {[%clk 0:00:26]}  Ne6 {[%clk 0:00:29]} 31. Rd2 {[%clk 0:00:20]}  Ke8 {[%clk 0:00:29]} 32. Ke2 {[%clk 0:00:19]}  g6 {[%clk 0:00:19]} 33. Ke3 {[%clk 0:00:19]}  Bd8 {[%clk 0:00:17]} 34. Kf3 {[%clk 0:00:18]}  Ke7 {[%clk 0:00:15]} 35. h4 {[%clk 0:00:17]}  Bb6 {[%clk 0:00:15]} 36. f5 {[%clk 0:00:16]}  Nd4+ {[%clk 0:00:09]} 37. Bxd4 {[%clk 0:00:16]}  Bxd4 {[%clk 0:00:10]} 38. Nf4 {[%clk 0:00:11]}  Be5 {[%clk 0:00:06]} 39. Nd5+ {[%clk 0:00:11]}  Kf7 {[%clk 0:00:05]} 40. Kg2 {[%clk 0:00:03]}  Rc1 {[%clk 0:00:04]} 41. Ne3 {[%clk 0:00:01]}  Rc3 {[%clk 0:00:04]} 42. Nd5 {[%clk 0:00:01]}  Rxb3 {[%clk 0:00:04]} 43. Rc2 {[%clk 0:00:01]}  Rb2 {[%clk 0:00:04]} 44. Rxb2 {[%clk 0:00:01]}  Bxb2 {[%clk 0:00:05]} 45. Nc7 {[%clk 0:00:01]}  Bxa3 {[%clk 0:00:04]} 46. Nxb5 {[%clk 0:00:01]}  Bb4 {[%clk 0:00:05]} 47. Kf2 {[%clk 0:00:01]}  a4 {[%clk 0:00:05]} 48. Nc7 {[%clk 0:00:00]}  a3 {[%clk 0:00:05]} 0-1


[Site "https://www.chess.com"]

[Event "Titled Tuesday Blitz August 1 Early 2023"]
[White "Vaibhav Jayant Raut"]
[Black "Hakobyan, Aram"]
[WhiteFideId "5089034"]
[BlackFideId "13306677"]
[WhiteElo "2599"]
[BlackElo "2948"]
[Result "0-1"]
[Round "2"]
[TimeControl "180+1"]
[Date "2023.08.01"]
[WhiteClock "0:00:18"]
[BlackClock "0:00:16"]
[Board "19"]

1. e4 {[%clk 0:03:00]}  g6 {[%clk 0:02:58]} 2. d4 {[%clk 0:03:00]}  Bg7 {[%clk 0:02:59]} 3. Nc3 {[%clk 0:02:58]}  c5 {[%clk 0:02:58]} 4. dxc5 {[%clk 0:02:59]}  Bxc3+ {[%clk 0:02:57]} 5. bxc3 {[%clk 0:02:59]}  Nf6 {[%clk 0:02:58]} 6. e5 {[%clk 0:02:56]}  Ne4 {[%clk 0:02:55]} 7. Qd4 {[%clk 0:02:54]}  Qa5 {[%clk 0:02:55]} 8. Bb2 {[%clk 0:02:50]}  Nxc5 {[%clk 0:02:52]} 9. Nf3 {[%clk 0:02:43]}  Nc6 {[%clk 0:02:52]} 10. Qe3 {[%clk 0:02:39]}  Na4 {[%clk 0:02:46]} 11. Rb1 {[%clk 0:02:38]}  b6 {[%clk 0:02:03]} 12. Be2 {[%clk 0:02:27]}  Ba6 {[%clk 0:02:02]} 13. Bxa6 {[%clk 0:01:56]}  Qxa6 {[%clk 0:02:02]} 14. Nd4 {[%clk 0:01:51]}  Rc8 {[%clk 0:02:00]} 15. Ne2 {[%clk 0:01:45]}  Qb5 {[%clk 0:01:57]} 16. O-O {[%clk 0:01:37]}  Nxb2 {[%clk 0:01:55]} 17. a4 {[%clk 0:01:37]}  Qxe5 {[%clk 0:01:52]} 18. Qxe5 {[%clk 0:01:34]}  Nxe5 {[%clk 0:01:53]} 19. Rxb2 {[%clk 0:01:35]}  Nc4 {[%clk 0:01:53]} 20. Rb5 {[%clk 0:01:34]}  O-O {[%clk 0:01:50]} 21. Rd1 {[%clk 0:01:34]}  d6 {[%clk 0:01:50]} 22. Nf4 {[%clk 0:01:32]}  e6 {[%clk 0:01:48]} 23. Ne2 {[%clk 0:01:32]}  Rc7 {[%clk 0:01:46]} 24. h4 {[%clk 0:01:32]}  Rfc8 {[%clk 0:01:43]} 25. h5 {[%clk 0:01:32]}  d5 {[%clk 0:01:44]} 26. g3 {[%clk 0:01:31]}  Nd6 {[%clk 0:01:44]} 27. Rb4 {[%clk 0:01:31]}  Ne4 {[%clk 0:01:44]} 28. h6 {[%clk 0:01:26]}  Kf8 {[%clk 0:01:40]} 29. Ra1 {[%clk 0:01:24]}  Nxc3 {[%clk 0:01:28]} 30. Nxc3 {[%clk 0:01:25]}  Rxc3 {[%clk 0:01:28]} 31. a5 {[%clk 0:01:26]}  Rxc2 {[%clk 0:01:25]} 32. axb6 {[%clk 0:01:25]}  Rc1+ {[%clk 0:01:25]} 33. Rxc1 {[%clk 0:01:24]}  Rxc1+ {[%clk 0:01:26]} 34. Kg2 {[%clk 0:01:25]}  axb6 {[%clk 0:01:27]} 35. Rxb6 {[%clk 0:01:25]}  Rc8 {[%clk 0:01:14]} 36. Rb7 {[%clk 0:01:22]}  g5 {[%clk 0:01:05]} 37. Kf3 {[%clk 0:01:18]}  Rc4 {[%clk 0:00:55]} 38. Rb8+ {[%clk 0:01:16]}  Ke7 {[%clk 0:00:56]} 39. Rh8 {[%clk 0:01:16]}  g4+ {[%clk 0:00:56]} 40. Ke3 {[%clk 0:01:14]}  Re4+ {[%clk 0:00:38]} 41. Kd3 {[%clk 0:01:13]}  Re5 {[%clk 0:00:37]} 42. Rxh7 {[%clk 0:01:13]}  Rh5 {[%clk 0:00:38]} 43. Rh8 {[%clk 0:01:06]}  Kf6 {[%clk 0:00:36]} 44. h7 {[%clk 0:01:06]}  Kg7 {[%clk 0:00:32]} 45. Rg8+ {[%clk 0:01:06]}  Kxh7 {[%clk 0:00:33]} 46. Rxg4 {[%clk 0:01:07]}  Rh6 {[%clk 0:00:33]} 47. Ra4 {[%clk 0:01:06]}  Kg7 {[%clk 0:00:34]} 48. Ke3 {[%clk 0:01:06]}  Rh1 {[%clk 0:00:33]} 49. Kf3 {[%clk 0:01:00]}  Kf6 {[%clk 0:00:33]} 50. Rf4+ {[%clk 0:00:59]}  Ke7 {[%clk 0:00:33]} 51. Ra4 {[%clk 0:01:00]}  Rb1 {[%clk 0:00:33]} 52. Kg4 {[%clk 0:00:58]}  Rb3 {[%clk 0:00:33]} 53. f4 {[%clk 0:00:58]}  Rd3 {[%clk 0:00:31]} 54. f5 {[%clk 0:00:53]}  Kf6 {[%clk 0:00:27]} 55. fxe6 {[%clk 0:00:45]}  fxe6 {[%clk 0:00:28]} 56. Kf4 {[%clk 0:00:46]}  e5+ {[%clk 0:00:27]} 57. Kg4 {[%clk 0:00:47]}  e4 {[%clk 0:00:26]} 58. Ra8 {[%clk 0:00:41]}  Ke5 {[%clk 0:00:23]} 59. Re8+ {[%clk 0:00:37]}  Kd4 {[%clk 0:00:22]} 60. Re7 {[%clk 0:00:36]}  Rd1 {[%clk 0:00:21]} 61. Kf5 {[%clk 0:00:23]}  Rf1+ {[%clk 0:00:20]} 62. Ke6 {[%clk 0:00:24]}  e3 {[%clk 0:00:20]} 63. Kd6 {[%clk 0:00:23]}  Rf6+ {[%clk 0:00:17]} 64. Kd7 {[%clk 0:00:22]}  Rg6 {[%clk 0:00:17]} 65. Re8 {[%clk 0:00:17]}  Rxg3 {[%clk 0:00:17]} 66. Re6 {[%clk 0:00:17]}  Kd3 {[%clk 0:00:16]} 67. Kd6 {[%clk 0:00:17]}  d4 {[%clk 0:00:16]} 68. Re5 {[%clk 0:00:17]}  e2 {[%clk 0:00:16]} 69. Kc5 {[%clk 0:00:18]}  Kd2 {[%clk 0:00:16]} 70. Kxd4 {[%clk 0:00:17]}  Rg4+ {[%clk 0:00:16]} 71. Kc5 {[%clk 0:00:16]}  e1=Q {[%clk 0:00:17]} 72. Rd5+ {[%clk 0:00:16]}  Kc3 {[%clk 0:00:17]} 73. Kb6 {[%clk 0:00:17]}  Qe6+ {[%clk 0:00:16]} 74. Kc5 {[%clk 0:00:17]}  Rc4+ {[%clk 0:00:17]} 75. Kb5 {[%clk 0:00:18]}  Qxd5+ {[%clk 0:00:17]} 76. Ka6 {[%clk 0:00:18]}  Rc6+ {[%clk 0:00:17]} 77. Ka7 {[%clk 0:00:17]}  Qd7+ {[%clk 0:00:18]} 78. Kb8 {[%clk 0:00:18]}  Rc8# {[%clk 0:00:16]} 0-1


[Site "https://www.chess.com"]

[Event "Titled Tuesday Blitz August 1 Early 2023"]
[White "Terry, Renato"]
[Black "Shukhman, Anna"]
[WhiteFideId "3803457"]
[BlackFideId "54180058"]
[WhiteElo "2946"]
[BlackElo "2598"]
[Result "1-0"]
[Round "2"]
[TimeControl "180+1"]
[Date "2023.08.01"]
[WhiteClock "0:01:10"]
[BlackClock "0:01:47"]
[Board "20"]

1. e4 {[%clk 0:02:55]}  c5 {[%clk 0:02:58]} 2. Nf3 {[%clk 0:02:55]}  a6 {[%clk 0:02:58]} 3. c3 {[%clk 0:02:55]}  d5 {[%clk 0:02:57]} 4. exd5 {[%clk 0:02:53]}  Qxd5 {[%clk 0:02:58]} 5. d4 {[%clk 0:02:54]}  e6 {[%clk 0:02:58]} 6. c4 {[%clk 0:02:50]}  Qd8 {[%clk 0:02:56]} 7. Nc3 {[%clk 0:02:48]}  Nf6 {[%clk 0:02:55]} 8. Be2 {[%clk 0:02:43]}  cxd4 {[%clk 0:02:54]} 9. Nxd4 {[%clk 0:02:41]}  Bb4 {[%clk 0:02:46]} 10. Qa4+ {[%clk 0:02:40]}  Nc6 {[%clk 0:02:45]} 11. Nxc6 {[%clk 0:02:40]}  Bxc3+ {[%clk 0:02:45]} 12. bxc3 {[%clk 0:02:41]}  bxc6 {[%clk 0:02:45]} 13. Qxc6+ {[%clk 0:02:18]}  Bd7 {[%clk 0:02:44]} 14. Qd6 {[%clk 0:02:18]}  Ne4 {[%clk 0:02:39]} 15. Qd4 {[%clk 0:02:18]}  Qf6 {[%clk 0:02:26]} 16. Bf3 {[%clk 0:01:54]}  Bc6 {[%clk 0:02:25]} 17. Bxe4 {[%clk 0:01:43]}  Bxe4 {[%clk 0:02:22]} 18. Qxe4 {[%clk 0:01:43]}  Qxc3+ {[%clk 0:02:20]} 19. Ke2 {[%clk 0:01:44]}  O-O {[%clk 0:02:09]} 20. Bd2 {[%clk 0:01:44]}  Qf6 {[%clk 0:02:07]} 21. Rac1 {[%clk 0:01:40]}  Rfd8 {[%clk 0:02:06]} 22. Be3 {[%clk 0:01:40]}  Rac8 {[%clk 0:02:03]} 23. Rhd1 {[%clk 0:01:36]}  Qb2+ {[%clk 0:02:01]} 24. Rc2 {[%clk 0:01:37]}  Qb4 {[%clk 0:02:01]} 25. Rxd8+ {[%clk 0:01:36]}  Rxd8 {[%clk 0:02:02]} 26. Rd2 {[%clk 0:01:14]}  Rc8 {[%clk 0:02:01]} 27. f3 {[%clk 0:01:10]}  h6 {[%clk 0:01:47]} 28. c5 {[%clk 0:01:10]} 1-0


[Site "https://www.chess.com"]